[Event "Titled Tuesday Blitz March 07 Late 2023"]
[White "Gubajdullin, Alexei"]
[Black "Oganian, Miran"]
[WhiteFideId "4141202"]
[BlackFideId "4122488"]
[WhiteElo "2267"]
[BlackElo "2323"]
[Result "1-0"]
[Round "05"]
[TimeControl "180+2"]
[Date "2023.03.07"]
[WhiteClock "0:01:30"]
[BlackClock "0:01:35"]

1. d4 {[%clk 0:02:59]}  e6 {[%clk 0:02:59]} 2. Nf3 {[%clk 0:02:53]}  d5 {[%clk 0:02:59]} 3. Bf4 {[%clk 0:02:53]}  g6 {[%clk 0:02:58]} 4. e3 {[%clk 0:02:53]}  Bg7 {[%clk 0:02:58]} 5. Be2 {[%clk 0:02:51]}  Nf6 {[%clk 0:02:58]} 6. h3 {[%clk 0:02:50]}  O-O {[%clk 0:02:58]} 7. O-O {[%clk 0:02:50]}  b6 {[%clk 0:02:58]} 8. c3 {[%clk 0:02:50]}  Bb7 {[%clk 0:02:58]} 9. a4 {[%clk 0:02:49]}  a5 {[%clk 0:02:56]} 10. Na3 {[%clk 0:02:49]}  Nbd7 {[%clk 0:02:57]} 11. Nb5 {[%clk 0:02:48]}  Rc8 {[%clk 0:02:56]} 12. b4 {[%clk 0:02:46]}  axb4 {[%clk 0:02:55]} 13. cxb4 {[%clk 0:02:46]}  Ba6 {[%clk 0:02:54]} 14. a5 {[%clk 0:02:44]}  Bxb5 {[%clk 0:02:54]} 15. Bxb5 {[%clk 0:02:43]}  c6 {[%clk 0:02:54]} 16. Ba6 {[%clk 0:02:41]}  Ra8 {[%clk 0:02:45]} 17. Bb7 {[%clk 0:02:41]}  Ra7 {[%clk 0:02:45]} 18. Bxc6 {[%clk 0:02:27]}  bxa5 {[%clk 0:02:44]} 19. Bd6 {[%clk 0:02:27]}  Re8 {[%clk 0:02:36]} 20. Ne5 {[%clk 0:02:27]}  Nb8 {[%clk 0:02:32]} 21. Bxe8 {[%clk 0:02:25]}  Qxd6 {[%clk 0:02:31]} 22. Bb5 {[%clk 0:02:11]}  Qxb4 {[%clk 0:02:31]} 23. Qb1 {[%clk 0:02:11]}  Qd6 {[%clk 0:02:29]} 24. Rc1 {[%clk 0:02:07]}  Bh6 {[%clk 0:02:11]} 25. Rc8+ {[%clk 0:02:05]}  Kg7 {[%clk 0:02:11]} 26. Qc2 {[%clk 0:01:37]}  Na6 {[%clk 0:01:53]} 27. Bxa6 {[%clk 0:01:36]}  Qxa6 {[%clk 0:01:50]} 28. Qc5 {[%clk 0:01:34]}  Ne4 {[%clk 0:01:36]} 29. Qf8+ {[%clk 0:01:33]}  Kf6 {[%clk 0:01:37]} 30. Ng4+ {[%clk 0:01:32]}  Kf5 {[%clk 0:01:35]} 31. Qxh6 {[%clk 0:01:30]} 1-0


[Site "https://www.chess.com"]

[Event "Titled Tuesday Blitz March 07 Late 2023"]
[White "Golubka, Petro"]
[Black "Derige Kane, Yan"]
[WhiteFideId "14114224"]
[BlackFideId "20665431"]
[WhiteElo "2391"]
[BlackElo "2149"]
[Result "0-1"]
[Round "05"]
[TimeControl "180+2"]
[Date "2023.03.07"]
[WhiteClock "0:00:14"]
[BlackClock "0:00:15"]

1. e4 {[%clk 0:02:32]}  c6 {[%clk 0:02:58]} 2. d4 {[%clk 0:02:31]}  d5 {[%clk 0:02:59]} 3. f3 {[%clk 0:02:28]}  dxe4 {[%clk 0:02:59]} 4. fxe4 {[%clk 0:02:29]}  e5 {[%clk 0:03:00]} 5. Nf3 {[%clk 0:02:29]}  Bg4 {[%clk 0:03:00]} 6. Bc4 {[%clk 0:02:28]}  Nd7 {[%clk 0:03:01]} 7. h3 {[%clk 0:02:27]}  Bxf3 {[%clk 0:02:58]} 8. Qxf3 {[%clk 0:02:28]}  Ngf6 {[%clk 0:02:54]} 9. c3 {[%clk 0:02:27]}  Bd6 {[%clk 0:02:52]} 10. Be3 {[%clk 0:02:24]}  O-O {[%clk 0:02:52]} 11. Nd2 {[%clk 0:02:23]}  Qe7 {[%clk 0:02:47]} 12. O-O-O {[%clk 0:02:02]}  b5 {[%clk 0:02:44]} 13. Bd3 {[%clk 0:01:53]}  c5 {[%clk 0:02:33]} 14. dxc5 {[%clk 0:01:52]}  Bxc5 {[%clk 0:02:24]} 15. Bxb5 {[%clk 0:01:50]}  Bxe3 {[%clk 0:02:23]} 16. Qxe3 {[%clk 0:01:51]}  Nc5 {[%clk 0:02:22]} 17. Bc4 {[%clk 0:01:45]}  Rfc8 {[%clk 0:02:16]} 18. b3 {[%clk 0:01:41]}  a5 {[%clk 0:02:15]} 19. Rhf1 {[%clk 0:01:39]}  a4 {[%clk 0:02:15]} 20. Rxf6 {[%clk 0:01:21]}  gxf6 {[%clk 0:02:10]} 21. b4 {[%clk 0:01:20]}  Ne6 {[%clk 0:02:04]} 22. Rf1 {[%clk 0:01:18]}  Nf4 {[%clk 0:01:58]} 23. g3 {[%clk 0:01:10]}  Ne6 {[%clk 0:01:57]} 24. h4 {[%clk 0:01:08]}  Kg7 {[%clk 0:01:38]} 25. Bd5 {[%clk 0:00:53]}  Qxb4 {[%clk 0:01:28]} 26. c4 {[%clk 0:00:50]}  Rab8 {[%clk 0:01:24]} 27. Qf3 {[%clk 0:00:49]}  Qb2+ {[%clk 0:01:08]} 28. Kd1 {[%clk 0:00:48]}  Qa1+ {[%clk 0:01:09]} 29. Ke2 {[%clk 0:00:47]}  Nd4+ {[%clk 0:01:09]} 30. Kd3 {[%clk 0:00:45]}  Nxf3 {[%clk 0:00:41]} 31. Rxa1 {[%clk 0:00:43]}  Nxd2 {[%clk 0:00:41]} 32. Kxd2 {[%clk 0:00:44]}  Rb2+ {[%clk 0:00:41]} 33. Kc3 {[%clk 0:00:44]}  a3 {[%clk 0:00:42]} 34. g4 {[%clk 0:00:41]}  h6 {[%clk 0:00:42]} 35. h5 {[%clk 0:00:41]}  Rcb8 {[%clk 0:00:42]} 36. c5 {[%clk 0:00:40]}  Kf8 {[%clk 0:00:42]} 37. Rd1 {[%clk 0:00:28]}  Ke7 {[%clk 0:00:39]} 38. Bb3 {[%clk 0:00:25]}  Re2 {[%clk 0:00:30]} 39. Bd5 {[%clk 0:00:19]}  Re3+ {[%clk 0:00:21]} 40. Kc4 {[%clk 0:00:18]}  Re2 {[%clk 0:00:21]} 41. Kc3 {[%clk 0:00:18]}  Rbb2 {[%clk 0:00:17]} 42. c6 {[%clk 0:00:17]}  Rec2+ {[%clk 0:00:15]} 43. Kd3 {[%clk 0:00:16]}  Kd6 {[%clk 0:00:15]} 44. Ke3 {[%clk 0:00:15]}  Rc3+ {[%clk 0:00:15]} 45. Rd3 {[%clk 0:00:15]}  Rxd3+ {[%clk 0:00:16]} 46. Kxd3 {[%clk 0:00:16]}  Rg2 {[%clk 0:00:16]} 47. Kc4 {[%clk 0:00:14]}  Rxg4 {[%clk 0:00:15]} 48. Kb4 {[%clk 0:00:14]}  Rg3 {[%clk 0:00:16]} 49. Kb5 {[%clk 0:00:14]}  f5 {[%clk 0:00:15]} 50. Kb6 {[%clk 0:00:14]}  fxe4 {[%clk 0:00:16]} 51. c7 {[%clk 0:00:14]}  Rc3 {[%clk 0:00:15]} 0-1


[Site "https://www.chess.com"]

[Event "Titled Tuesday Blitz March 07 Late 2023"]
[White "Martin Carmona, Gaston Manuel"]
[Black "Iliaguev, Nisim"]
[WhiteFideId "22284567"]
[BlackFideId "2817276"]
[WhiteElo "2245"]
[BlackElo "2241"]
[Result "0-1"]
[Round "05"]
[TimeControl "180+2"]
[Date "2023.03.07"]
[WhiteClock "0:00:25"]
[BlackClock "0:00:16"]

1. d4 {[%clk 0:03:00]}  Nf6 {[%clk 0:02:53]} 2. c4 {[%clk 0:02:58]}  e6 {[%clk 0:02:53]} 3. Nc3 {[%clk 0:02:59]}  Bb4 {[%clk 0:02:54]} 4. Qc2 {[%clk 0:02:58]}  c6 {[%clk 0:02:51]} 5. e4 {[%clk 0:02:55]}  d5 {[%clk 0:02:51]} 6. e5 {[%clk 0:02:56]}  Nfd7 {[%clk 0:02:51]} 7. Bd3 {[%clk 0:02:53]}  dxc4 {[%clk 0:02:50]} 8. Bxc4 {[%clk 0:02:53]}  Nb6 {[%clk 0:02:49]} 9. Bd3 {[%clk 0:02:50]}  Qxd4 {[%clk 0:02:48]} 10. Nf3 {[%clk 0:02:51]}  Qd8 {[%clk 0:02:39]} 11. Bg5 {[%clk 0:02:49]}  Be7 {[%clk 0:02:35]} 12. h4 {[%clk 0:02:49]}  h6 {[%clk 0:02:34]} 13. Bxe7 {[%clk 0:02:49]}  Qxe7 {[%clk 0:02:34]} 14. O-O-O {[%clk 0:02:50]}  N8d7 {[%clk 0:02:28]} 15. Ne4 {[%clk 0:02:48]}  O-O {[%clk 0:02:27]} 16. g4 {[%clk 0:02:43]}  Nd5 {[%clk 0:02:27]} 17. g5 {[%clk 0:02:38]}  h5 {[%clk 0:02:26]} 18. Nf6+ {[%clk 0:02:38]}  gxf6 {[%clk 0:02:20]} 19. gxf6 {[%clk 0:02:37]}  N7xf6 {[%clk 0:02:20]} 20. exf6 {[%clk 0:02:36]}  Qxf6 {[%clk 0:02:21]} 21. Rhg1+ {[%clk 0:02:35]}  Kh8 {[%clk 0:02:18]} 22. Ng5 {[%clk 0:02:34]}  e5 {[%clk 0:02:07]} 23. Qe2 {[%clk 0:02:28]}  Bg4 {[%clk 0:02:03]} 24. Rxg4 {[%clk 0:02:25]}  hxg4 {[%clk 0:02:04]} 25. Kb1 {[%clk 0:02:07]}  Nf4 {[%clk 0:01:58]} 26. Qxg4 {[%clk 0:02:04]}  Rad8 {[%clk 0:01:50]} 27. Qf3 {[%clk 0:01:31]}  Rxd3 {[%clk 0:01:46]} 28. Rxd3 {[%clk 0:01:31]}  Qg6 {[%clk 0:01:46]} 29. Ne4 {[%clk 0:01:31]}  Nxd3 {[%clk 0:01:34]} 30. Qxd3 {[%clk 0:01:32]}  Kg7 {[%clk 0:01:30]} 31. a3 {[%clk 0:01:30]}  f5 {[%clk 0:01:28]} 32. Nc5 {[%clk 0:01:26]}  Rf7 {[%clk 0:01:15]} 33. Qc3 {[%clk 0:01:14]}  Qd6 {[%clk 0:01:10]} 34. h5 {[%clk 0:01:09]}  Qd1+ {[%clk 0:01:01]} 35. Ka2 {[%clk 0:01:08]}  Qd5+ {[%clk 0:01:02]} 36. Ka1 {[%clk 0:01:07]}  Kh6 {[%clk 0:00:52]} 37. Nd3 {[%clk 0:00:44]}  Rg7 {[%clk 0:00:43]} 38. b3 {[%clk 0:00:31]}  Qd4 {[%clk 0:00:40]} 39. Kb2 {[%clk 0:00:28]}  Qxc3+ {[%clk 0:00:39]} 40. Kxc3 {[%clk 0:00:29]}  e4 {[%clk 0:00:37]} 41. Nf4 {[%clk 0:00:29]}  Rd7 {[%clk 0:00:32]} 42. a4 {[%clk 0:00:25]}  Kg5 {[%clk 0:00:30]} 43. Ne6+ {[%clk 0:00:25]}  Kxh5 {[%clk 0:00:30]} 44. Nc5 {[%clk 0:00:26]}  Re7 {[%clk 0:00:23]} 45. Kd4 {[%clk 0:00:27]}  Kg4 {[%clk 0:00:22]} 46. a5 {[%clk 0:00:27]}  a6 {[%clk 0:00:22]} 47. Ke3 {[%clk 0:00:26]}  f4+ {[%clk 0:00:22]} 48. Ke2 {[%clk 0:00:27]}  e3 {[%clk 0:00:21]} 49. f3+ {[%clk 0:00:28]}  Kf5 {[%clk 0:00:18]} 50. b4 {[%clk 0:00:28]}  Ke5 {[%clk 0:00:17]} 51. Kd3 {[%clk 0:00:24]}  Kd5 {[%clk 0:00:16]} 52. Ne4 {[%clk 0:00:24]}  Rxe4 {[%clk 0:00:16]} 53. fxe4+ {[%clk 0:00:25]}  Ke5 {[%clk 0:00:16]} 0-1


[Site "https://www.chess.com"]

[Event "Titled Tuesday Blitz March 07 Late 2023"]
[White "Iskusnyh, Sergei"]
[Black "Pinheiro, Iung Alicio de O."]
[WhiteFideId "4120027"]
[BlackFideId "2104350"]
[WhiteElo "2492"]
[BlackElo "2283"]
[Result "1-0"]
[Round "05"]
[TimeControl "180+2"]
[Date "2023.03.07"]
[WhiteClock "0:00:59"]
[BlackClock "0:00:03"]

1. d4 {[%clk 0:03:00]}  d5 {[%clk 0:02:55]} 2. c4 {[%clk 0:03:00]}  e6 {[%clk 0:02:54]} 3. Nf3 {[%clk 0:02:59]}  h6 {[%clk 0:02:54]} 4. g3 {[%clk 0:02:56]}  Nf6 {[%clk 0:02:54]} 5. Bg2 {[%clk 0:02:55]}  Bd6 {[%clk 0:02:54]} 6. O-O {[%clk 0:02:51]}  O-O {[%clk 0:02:54]} 7. Qc2 {[%clk 0:02:45]}  b6 {[%clk 0:02:52]} 8. cxd5 {[%clk 0:02:42]}  exd5 {[%clk 0:02:51]} 9. Nc3 {[%clk 0:02:42]}  a6 {[%clk 0:02:43]} 10. Bf4 {[%clk 0:02:27]}  Bxf4 {[%clk 0:01:57]} 11. gxf4 {[%clk 0:02:28]}  Bb7 {[%clk 0:01:25]} 12. Rad1 {[%clk 0:02:26]}  Nc6 {[%clk 0:01:24]} 13. Ne5 {[%clk 0:02:20]}  Ne7 {[%clk 0:01:24]} 14. Kh1 {[%clk 0:02:06]}  Ne8 {[%clk 0:01:18]} 15. Rg1 {[%clk 0:01:57]}  Nd6 {[%clk 0:00:54]} 16. Bh3 {[%clk 0:01:41]}  Bc8 {[%clk 0:00:50]} 17. Qd3 {[%clk 0:01:38]}  Bf5 {[%clk 0:00:45]} 18. Bxf5 {[%clk 0:01:35]}  Nexf5 {[%clk 0:00:39]} 19. Nxd5 {[%clk 0:01:28]}  f6 {[%clk 0:00:33]} 20. Ng6 {[%clk 0:01:19]}  Re8 {[%clk 0:00:33]} 21. Nc3 {[%clk 0:01:06]}  Ne7 {[%clk 0:00:21]} 22. e4 {[%clk 0:01:02]}  Nxg6 {[%clk 0:00:18]} 23. Rxg6 {[%clk 0:01:01]}  Qe7 {[%clk 0:00:03]} 24. Nd5 {[%clk 0:00:59]} 1-0


[Site "https://www.chess.com"]

[Event "Titled Tuesday Blitz March 07 Late 2023"]
[White "Leiva, Gianmarco"]
[Black "Seletsky, Grigory"]
[WhiteFideId "3804399"]
[BlackFideId "14112191"]
[WhiteElo "2345"]
[BlackElo "2490"]
[Result "1/2-1/2"]
[Round "05"]
[TimeControl "180+2"]
[Date "2023.03.07"]
[WhiteClock "0:00:02"]
[BlackClock "0:00:09"]

1. e4 {[%clk 0:02:40]}  c5 {[%clk 0:02:58]} 2. Nf3 {[%clk 0:02:40]}  d6 {[%clk 0:02:58]} 3. Bb5+ {[%clk 0:02:39]}  Nc6 {[%clk 0:02:56]} 4. O-O {[%clk 0:02:38]}  Bd7 {[%clk 0:02:56]} 5. Re1 {[%clk 0:02:36]}  a6 {[%clk 0:02:56]} 6. Bf1 {[%clk 0:02:36]}  e5 {[%clk 0:02:55]} 7. c3 {[%clk 0:02:34]}  Nf6 {[%clk 0:02:50]} 8. d4 {[%clk 0:02:14]}  Be7 {[%clk 0:02:50]} 9. h3 {[%clk 0:01:59]}  O-O {[%clk 0:02:41]} 10. Na3 {[%clk 0:01:56]}  b5 {[%clk 0:02:39]} 11. Nc2 {[%clk 0:01:55]}  Re8 {[%clk 0:02:30]} 12. a4 {[%clk 0:01:48]}  c4 {[%clk 0:02:17]} 13. axb5 {[%clk 0:01:37]}  axb5 {[%clk 0:02:15]} 14. Rxa8 {[%clk 0:01:33]}  Qxa8 {[%clk 0:02:13]} 15. Bg5 {[%clk 0:01:25]}  Rd8 {[%clk 0:02:03]} 16. Qd2 {[%clk 0:01:07]}  h6 {[%clk 0:02:00]} 17. Bxf6 {[%clk 0:01:06]}  Bxf6 {[%clk 0:01:59]} 18. Ra1 {[%clk 0:01:07]}  Qb7 {[%clk 0:01:55]} 19. d5 {[%clk 0:01:07]}  Ne7 {[%clk 0:01:50]} 20. Nb4 {[%clk 0:01:01]}  Ra8 {[%clk 0:01:49]} 21. Qd1 {[%clk 0:01:00]}  Ra7 {[%clk 0:01:45]} 22. g3 {[%clk 0:00:31]}  Qa8 {[%clk 0:01:39]} 23. Rxa7 {[%clk 0:00:31]}  Qxa7 {[%clk 0:01:40]} 24. Kh2 {[%clk 0:00:29]}  g6 {[%clk 0:01:35]} 25. Qd2 {[%clk 0:00:24]}  Bg7 {[%clk 0:01:36]} 26. h4 {[%clk 0:00:23]}  h5 {[%clk 0:01:30]} 27. Bh3 {[%clk 0:00:23]}  Bxh3 {[%clk 0:01:22]} 28. Kxh3 {[%clk 0:00:23]}  Qd7+ {[%clk 0:01:22]} 29. Kg2 {[%clk 0:00:23]}  Kh7 {[%clk 0:01:20]} 30. Ng5+ {[%clk 0:00:21]}  Kg8 {[%clk 0:01:19]} 31. Nf3 {[%clk 0:00:19]}  Kh7 {[%clk 0:01:18]} 32. Ng5+ {[%clk 0:00:15]}  Kg8 {[%clk 0:01:17]} 33. Nh3 {[%clk 0:00:15]}  Kh7 {[%clk 0:01:13]} 34. Qe3 {[%clk 0:00:15]}  Qb7 {[%clk 0:01:05]} 35. Ng5+ {[%clk 0:00:12]}  Kg8 {[%clk 0:01:03]} 36. Qf3 {[%clk 0:00:11]}  f5 {[%clk 0:01:01]} 37. Ne6 {[%clk 0:00:10]}  Qc8 {[%clk 0:00:47]} 38. exf5 {[%clk 0:00:07]}  Nxf5 {[%clk 0:00:46]} 39. Nc6 {[%clk 0:00:07]}  Qd7 {[%clk 0:00:44]} 40. Ng5 {[%clk 0:00:06]}  Nh6 {[%clk 0:00:32]} 41. Ne6 {[%clk 0:00:05]}  Nf5 {[%clk 0:00:32]} 42. Qd1 {[%clk 0:00:04]}  e4 {[%clk 0:00:24]} 43. Qe2 {[%clk 0:00:03]}  e3 {[%clk 0:00:19]} 44. fxe3 {[%clk 0:00:04]}  Bh6 {[%clk 0:00:18]} 45. e4 {[%clk 0:00:04]}  Ne3+ {[%clk 0:00:18]} 46. Kh2 {[%clk 0:00:03]}  Qf7 {[%clk 0:00:16]} 47. Ncd4 {[%clk 0:00:03]}  Ng4+ {[%clk 0:00:16]} 48. Kh1 {[%clk 0:00:03]}  Be3 {[%clk 0:00:13]} 49. Nf3 {[%clk 0:00:03]}  Bb6 {[%clk 0:00:12]} 50. Kg2 {[%clk 0:00:02]}  Ne3+ {[%clk 0:00:12]} 51. Kh1 {[%clk 0:00:03]}  Ng4 {[%clk 0:00:12]} 52. Nf4 {[%clk 0:00:02]}  Qe8 {[%clk 0:00:09]} 53. Ne6 {[%clk 0:00:02]}  Qf7 {[%clk 0:00:09]} 1/2-1/2


[Site "https://www.chess.com"]

[Event "Titled Tuesday Blitz March 07 Late 2023"]
[White "Melikhov, Evgeny V."]
[Black "Ozates, Tuna"]
[WhiteFideId "4122046"]
[BlackFideId "6354521"]
[WhiteElo "2158"]
[BlackElo "2151"]
[Result "1-0"]
[Round "05"]
[TimeControl "180+2"]
[Date "2023.03.07"]
[WhiteClock "0:00:11"]
[BlackClock "0:00:03"]

1. d4 {[%clk 0:03:00]}  Nf6 {[%clk 0:02:56]} 2. c4 {[%clk 0:03:00]}  e6 {[%clk 0:02:56]} 3. Nc3 {[%clk 0:03:00]}  d5 {[%clk 0:02:55]} 4. cxd5 {[%clk 0:02:59]}  exd5 {[%clk 0:02:56]} 5. Bg5 {[%clk 0:02:59]}  c6 {[%clk 0:02:56]} 6. Qc2 {[%clk 0:02:59]}  Be7 {[%clk 0:02:56]} 7. e3 {[%clk 0:02:59]}  O-O {[%clk 0:02:57]} 8. Bd3 {[%clk 0:03:00]}  Nbd7 {[%clk 0:02:58]} 9. Nf3 {[%clk 0:02:59]}  Re8 {[%clk 0:02:57]} 10. O-O {[%clk 0:02:59]}  Nf8 {[%clk 0:02:57]} 11. h3 {[%clk 0:02:59]}  Ng6 {[%clk 0:02:54]} 12. Ne5 {[%clk 0:02:59]}  Ne4 {[%clk 0:02:12]} 13. Bxe7 {[%clk 0:02:42]}  Qxe7 {[%clk 0:02:10]} 14. Nxe4 {[%clk 0:02:36]}  dxe4 {[%clk 0:02:10]} 15. Bxe4 {[%clk 0:02:34]}  Nxe5 {[%clk 0:02:09]} 16. dxe5 {[%clk 0:02:01]}  h6 {[%clk 0:02:00]} 17. f4 {[%clk 0:01:54]}  f6 {[%clk 0:01:54]} 18. Bh7+ {[%clk 0:01:53]}  Kh8 {[%clk 0:01:54]} 19. Bg6 {[%clk 0:01:53]}  Rf8 {[%clk 0:01:49]} 20. exf6 {[%clk 0:01:21]}  Rxf6 {[%clk 0:01:49]} 21. Rae1 {[%clk 0:01:13]}  Be6 {[%clk 0:01:45]} 22. Bd3 {[%clk 0:01:09]}  Rd8 {[%clk 0:01:39]} 23. a3 {[%clk 0:01:00]}  a5 {[%clk 0:01:17]} 24. e4 {[%clk 0:01:00]}  a4 {[%clk 0:01:17]} 25. e5 {[%clk 0:01:00]}  Rff8 {[%clk 0:01:14]} 26. Qe2 {[%clk 0:00:57]}  Bd5 {[%clk 0:01:11]} 27. f5 {[%clk 0:00:43]}  Rde8 {[%clk 0:01:03]} 28. Qh5 {[%clk 0:00:35]}  Qc5+ {[%clk 0:01:01]} 29. Kh2 {[%clk 0:00:32]}  Qd4 {[%clk 0:00:58]} 30. Bb1 {[%clk 0:00:26]}  Rxe5 {[%clk 0:00:55]} 31. Rxe5 {[%clk 0:00:25]}  Qxe5+ {[%clk 0:00:56]} 32. Kg1 {[%clk 0:00:24]}  Qxb2 {[%clk 0:00:54]} 33. Qg4 {[%clk 0:00:19]}  Qf6 {[%clk 0:00:35]} 34. Qxa4 {[%clk 0:00:18]}  b5 {[%clk 0:00:34]} 35. Qf4 {[%clk 0:00:18]}  Ra8 {[%clk 0:00:32]} 36. Be4 {[%clk 0:00:16]}  Ra4 {[%clk 0:00:32]} 37. Qb8+ {[%clk 0:00:15]}  Kh7 {[%clk 0:00:32]} 38. Bxd5 {[%clk 0:00:15]}  Qd4+ {[%clk 0:00:30]} 39. Kh1 {[%clk 0:00:15]}  Qxd5 {[%clk 0:00:31]} 40. f6 {[%clk 0:00:15]}  Rh4 {[%clk 0:00:17]} 41. Kg1 {[%clk 0:00:13]}  Qc5+ {[%clk 0:00:16]} 42. Kh1 {[%clk 0:00:12]}  Qd5 {[%clk 0:00:15]} 43. Qg3 {[%clk 0:00:11]}  Rd4 {[%clk 0:00:03]} 44. Qxg7# {[%clk 0:00:11]} 1-0


[Site "https://www.chess.com"]

[Event "Titled Tuesday Blitz March 07 Late 2023"]
[White "Bach, Matthias"]
[Black "Marra, Eduardo da Costa"]
[WhiteFideId "4603168"]
[BlackFideId "2106990"]
[WhiteElo "2165"]
[BlackElo "2252"]
[Result "1/2-1/2"]
[Round "05"]
[TimeControl "180+2"]
[Date "2023.03.07"]
[WhiteClock "0:00:28"]
[BlackClock "0:00:34"]

1. d4 {[%clk 0:02:53]}  d6 {[%clk 0:03:00]} 2. c3 {[%clk 0:02:53]}  Nf6 {[%clk 0:03:01]} 3. Nd2 {[%clk 0:02:51]}  g6 {[%clk 0:03:00]} 4. e4 {[%clk 0:02:51]}  Nbd7 {[%clk 0:03:00]} 5. Bd3 {[%clk 0:02:51]}  e5 {[%clk 0:03:00]} 6. f4 {[%clk 0:02:50]}  Bg7 {[%clk 0:02:55]} 7. Ngf3 {[%clk 0:02:47]}  O-O {[%clk 0:02:55]} 8. O-O {[%clk 0:02:45]}  Qe7 {[%clk 0:02:54]} 9. fxe5 {[%clk 0:02:42]}  dxe5 {[%clk 0:02:54]} 10. d5 {[%clk 0:02:42]}  Nc5 {[%clk 0:02:53]} 11. Qe2 {[%clk 0:02:37]}  Nh5 {[%clk 0:02:48]} 12. Nc4 {[%clk 0:02:36]}  Bg4 {[%clk 0:02:32]} 13. Be3 {[%clk 0:02:29]}  b6 {[%clk 0:02:30]} 14. b4 {[%clk 0:02:28]}  Nxd3 {[%clk 0:02:29]} 15. Qxd3 {[%clk 0:02:29]}  f5 {[%clk 0:02:28]} 16. d6 {[%clk 0:02:19]}  cxd6 {[%clk 0:02:23]} 17. Qxd6 {[%clk 0:02:18]}  Qxd6 {[%clk 0:02:14]} 18. Nxd6 {[%clk 0:02:17]}  Rad8 {[%clk 0:01:58]} 19. Nc4 {[%clk 0:02:07]}  fxe4 {[%clk 0:01:53]} 20. Ng5 {[%clk 0:02:06]}  Rxf1+ {[%clk 0:01:47]} 21. Kxf1 {[%clk 0:02:04]}  Rf8+ {[%clk 0:01:30]} 22. Ke1 {[%clk 0:02:00]}  Nf4 {[%clk 0:01:25]} 23. Bxf4 {[%clk 0:01:31]}  exf4 {[%clk 0:01:25]} 24. Rc1 {[%clk 0:01:23]}  f3 {[%clk 0:01:23]} 25. gxf3 {[%clk 0:01:21]}  exf3 {[%clk 0:01:24]} 26. Kf2 {[%clk 0:01:21]}  Re8 {[%clk 0:01:19]} 27. Rc2 {[%clk 0:01:14]}  Re2+ {[%clk 0:01:14]} 28. Rxe2 {[%clk 0:01:13]}  fxe2 {[%clk 0:01:14]} 29. Ne4 {[%clk 0:01:11]}  Bf5 {[%clk 0:01:10]} 30. Ncd6 {[%clk 0:01:06]}  Bg4 {[%clk 0:00:58]} 31. c4 {[%clk 0:01:04]}  Kf8 {[%clk 0:00:52]} 32. c5 {[%clk 0:01:04]}  bxc5 {[%clk 0:00:52]} 33. bxc5 {[%clk 0:00:59]}  Ke7 {[%clk 0:00:52]} 34. c6 {[%clk 0:00:55]}  Bd4+ {[%clk 0:00:49]} 35. Ke1 {[%clk 0:00:55]}  Bb6 {[%clk 0:00:48]} 36. Nc4 {[%clk 0:00:53]}  Bc7 {[%clk 0:00:43]} 37. Nf2 {[%clk 0:00:47]}  Bf3 {[%clk 0:00:41]} 38. Nd2 {[%clk 0:00:44]}  Bxc6 {[%clk 0:00:41]} 39. Kxe2 {[%clk 0:00:43]}  Bxh2 {[%clk 0:00:41]} 40. Ng4 {[%clk 0:00:43]}  Bf4 {[%clk 0:00:40]} 41. Nb3 {[%clk 0:00:40]}  h5 {[%clk 0:00:38]} 42. Nf2 {[%clk 0:00:39]}  g5 {[%clk 0:00:37]} 43. Nd4 {[%clk 0:00:38]}  Bd6 {[%clk 0:00:36]} 44. Nxc6+ {[%clk 0:00:37]}  Kd7 {[%clk 0:00:35]} 45. Nd4 {[%clk 0:00:37]}  Bc5 {[%clk 0:00:34]} 46. Nf3 {[%clk 0:00:32]}  g4 {[%clk 0:00:34]} 47. Ne5+ {[%clk 0:00:31]}  Ke6 {[%clk 0:00:33]} 48. Nexg4 {[%clk 0:00:31]}  hxg4 {[%clk 0:00:33]} 49. Nxg4 {[%clk 0:00:31]}  Kd5 {[%clk 0:00:33]} 50. Kd3 {[%clk 0:00:31]}  Bd6 {[%clk 0:00:32]} 51. Ne3+ {[%clk 0:00:30]}  Kc5 {[%clk 0:00:32]} 52. Kc2 {[%clk 0:00:30]}  Kb4 {[%clk 0:00:31]} 53. Kb1 {[%clk 0:00:29]}  Bc5 {[%clk 0:00:31]} 54. Nc2+ {[%clk 0:00:29]}  Kc4 {[%clk 0:00:30]} 55. Kb2 {[%clk 0:00:28]}  a5 {[%clk 0:00:31]} 56. Na1 {[%clk 0:00:27]}  a4 {[%clk 0:00:31]} 57. Nc2 {[%clk 0:00:26]}  Bd6 {[%clk 0:00:30]} 58. Na3+ {[%clk 0:00:26]}  Bxa3+ {[%clk 0:00:28]} 59. Kxa3 {[%clk 0:00:26]}  Kb5 {[%clk 0:00:29]} 60. Kb2 {[%clk 0:00:26]}  Ka5 {[%clk 0:00:30]} 61. a3 {[%clk 0:00:26]}  Kb5 {[%clk 0:00:30]} 62. Kc3 {[%clk 0:00:26]}  Kc5 {[%clk 0:00:31]} 63. Kd3 {[%clk 0:00:26]}  Kd5 {[%clk 0:00:32]} 64. Kc3 {[%clk 0:00:27]}  Kc5 {[%clk 0:00:32]} 65. Kd3 {[%clk 0:00:27]}  Kd5 {[%clk 0:00:33]} 66. Kc3 {[%clk 0:00:28]}  Kc5 {[%clk 0:00:34]} 1/2-1/2


[Site "https://www.chess.com"]